lending/lending_fUSD_20260119
["ID","MTS","AMOUNT","RATE_DAILY","PERIOD"]
[402710887,1768819832429,-500.0,0.00015957,2]
[402710888,1768819832438,-500.0,0.00015957,2]
[402710889,1768819832447,-500.0,0.00015957,2]
[402710890,1768819832456,-500.0,0.00015957,2]
[402710891,1768819832465,-500.0,0.00015957,2]
[402710892,1768819832474,-500.0,0.00015957,2]
[402710893,1768819832483,-500.0,0.00015957,2]
[402710894,1768819832493,-284.59107167,0.00015957,2]
[402710895,1768819832502,-21814.93039566,0.00016029,2]
[402710896,1768819832511,-150.0,0.000162,2]
[402710897,1768819832520,-150.0,0.000162,2]
[402710898,1768819832529,-150.0,0.00016312,2]
[402710899,1768819832538,-200.0,0.00016335,2]
[402710900,1768819832547,-3002.22,0.00016338,2]
[402710901,1768819832557,-1600.0,0.0001639,2]
[402710902,1768819832566,-500.0,0.00016438,2]
[402710903,1768819832575,-500.0,0.00016438,2]
[402710904,1768819832585,-500.0,0.00016438,2]
[402710905,1768819832595,-500.0,0.00016438,2]
[402710906,1768819832605,-500.0,0.00016438,2]
[402710907,1768819832614,-500.0,0.00016438,2]
[402710908,1768819832624,-500.0,0.00016438,2]
[402710909,1768819832634,-500.0,0.00016438,2]
[402710910,1768819832643,-500.0,0.00016438,2]
[402710911,1768819832653,-500.0,0.00016438,2]
[402710912,1768819832662,-500.0,0.00016438,2]
[402710913,1768819832671,-500.0,0.00016438,2]
[402710914,1768819832680,-500.0,0.00016438,2]
[402710915,1768819832691,-500.0,0.00016438,2]
[402710916,1768819832700,-177.53390815,0.00016438,2]
[402710917,1768819832710,-500.0,0.00016438,2]
[402710918,1768819832720,-500.0,0.00016438,2]
[402710919,1768819832730,-500.0,0.00016438,2]
[402710921,1768819832740,-500.0,0.00016438,2]
[402710923,1768819832749,-500.0,0.00016438,2]
[402710925,1768819832758,-500.0,0.00016438,2]
[402710927,1768819832768,-500.0,0.00016438,2]
[402710929,1768819832777,-500.0,0.00016438,2]
[402710931,1768819832786,-500.0,0.00016438,2]
[402710933,1768819832795,-500.0,0.00016438,2]
[402710935,1768819832805,-500.0,0.00016438,2]
[402710937,1768819832814,-500.0,0.00016438,2]
[402710939,1768819832824,-500.0,0.00016438,2]
[402710941,1768819832833,-500.0,0.00016438,2]
[402710943,1768819832843,-500.0,0.00016438,2]
[402710945,1768819832852,-500.0,0.00016438,2]
[402710947,1768819832861,-500.0,0.00016438,2]
[402710949,1768819832871,-500.0,0.00016438,2]
[402710951,1768819832880,-500.0,0.00016438,2]
[402710953,1768819832890,-153.50123809,0.00016438,2]
[402710955,1768819832899,-500.0,0.00016438,2]
[402710957,1768819832909,-500.0,0.00016438,2]
[402710959,1768819832918,-500.0,0.00016438,2]
[402710961,1768819832928,-228.29,0.00016438,2]
[402710963,1768819832937,-500.0,0.00016438,2]
[402710965,1768819832946,-578.20924308,0.00016505,2]
[402710967,1768819832955,-174.61919141,0.00016505,2]
[402710969,1768819832965,-1000.0,0.00016505,2]
[402710971,1768819832974,-1000.0,0.00016505,2]
[402710973,1768819832984,-322.6107,0.00016505,2]
[402710975,1768819832994,-1000.0,0.00016505,2]
[402710977,1768819833003,-1000.0,0.00016505,2]
[402710979,1768819833012,-1000.0,0.00016505,2]
[402710981,1768819833022,-1000.0,0.00016505,2]
[402710983,1768819833031,-1000.0,0.00016505,2]
[402710985,1768819833040,-1000.0,0.00016505,2]
[402710987,1768819833050,-1000.0,0.00016505,2]
[402710989,1768819833060,-1000.0,0.00016505,2]
[402710991,1768819833071,-1000.0,0.00016505,2]
[402710993,1768819833080,-620.0,0.00016505,2]
[402710995,1768819833090,-574.12855637,0.00016505,2]
[402710997,1768819833099,-721.12765535,0.00016505,2]
[402710999,1768819833108,-288.7470862,0.00016505,2]
[402711001,1768819833119,-924.73,0.00016622,2]
[402711003,1768819833129,-876.0,0.00016626,2]
[402711005,1768819833137,-924.73,0.00016666,2]
[402711006,1768819833150,-455.0,0.00016695,2]
[402711007,1768819833161,-924.73,0.0001671,2]
[402711008,1768819833170,-228.29,0.00016712,2]
[402711009,1768819833179,-166.36,0.00016712,2]
[402711010,1768819833189,-183.99,0.00016716,2]
[402711011,1768819833198,-714.0,0.00016749,2]
[402711012,1768819833207,-924.73,0.00016753,2]
[402711013,1768819833217,-349.0,0.00016777,2]
[402711014,1768819833226,-924.73,0.00016797,2]
[402711015,1768819833236,-500.0,0.00016816,2]
[402711016,1768819833246,-924.73,0.00016841,2]
[402711017,1768819833256,-1852.42,0.00016878,2]
[402711018,1768819833270,-924.73,0.00016885,2]
[402711019,1768819833279,-3631.66,0.00016922,2]
[402711020,1768819833288,-1109.96,0.00016922,2]
[402711021,1768819833299,-598.33,0.00016922,2]
[402711022,1768819833311,-299.99,0.00016922,4]
[402711023,1768819833321,-183.24,0.00016922,2]
[402711024,1768819833331,-150.99,0.00016922,2]
[402711025,1768819833341,-284.39,0.00016928,2]
[402711026,1768819833351,-924.73,0.00016928,2]
[402711027,1768819833361,-288.0,0.00016948,2]
[402711028,1768819833371,-924.73,0.00016972,2]
[402711029,1768819833381,-228.31,0.00016986,2]
[402711030,1768819833390,-288.0,0.0001699,2]
[402711031,1768819833400,-250.0,0.00017,2]
[402711032,1768819833409,-924.73,0.00017016,2]
[402711033,1768819833419,-747.0,0.0001705,2]
[402711034,1768819833428,-174.61919141,0.00017053,2]
[402711035,1768819833439,-595.37131296,0.00017053,2]
[402711036,1768819833449,-924.73,0.0001706,2]
[402711037,1768819833459,-465.0,0.00017073,2]
[402711038,1768819833468,-809.6816331,0.00017103,2]
[402711039,1768819833698,-115.0483669,0.00017103,2]
[402711040,1768819833708,-288.0,0.0001713,2]
[402711041,1768819833718,-240.10293129,0.00017147,2]
[402711042,1768819833793,-333.05133563,0.00017147,2]
[402711043,1768819833805,-251.0,0.00017147,2]
[402711044,1768819833816,-100.57573308,0.00017147,2]
[402711045,1768819833825,-226.1375997,0.00017176,2]
[402711051,1768819838373,-744.8624003,0.00017176,2]
[402711052,1768819838384,-924.73,0.00017191,2]
[402711053,1768819838394,-924.73,0.00017235,2]
[402711054,1768819838404,-1000.0,0.0001726,2]
[402711055,1768819838415,-916.0,0.0001727,2]
[402711056,1768819838424,-924.73,0.00017278,2]
[402711057,1768819838434,-924.73,0.00017322,2]
[402711058,1768819838443,-6022.2266853,0.00017359,2]
[402711059,1768819840569,-15792.70371036,0.00017359,2]
[402711060,1768819840579,-924.73,0.00017366,2]
[402711061,1768819840589,-4456.0,0.00017403,2]
[402711062,1768819840599,-924.73,0.0001741,2]
[402711063,1768819840609,-150.0,0.00017452,2]
[402711064,1768819840619,-924.73,0.00017453,2]
[402711065,1768819840630,-3421.21,0.00017462,2]
[402711066,1768819840639,-1530.16,0.00017498,2]
[402711067,1768819840649,-1680.0,0.00017534,2]
[402711068,1768819840659,-1000.0,0.00017534,2]
[402711069,1768819840668,-617.40005154,0.00017601,2]
[402711070,1768819840678,-4456.0,0.0001762,2]
[402711071,1768819840690,-245.74464587,0.0001764,2]
[402711072,1768819840700,-183.99,0.00017644,2]
[402711073,1768819840710,-168.07078394,0.00017654,2]
[402711074,1768819840721,-168.07078377,0.00017667,2]
[402711075,1768819840730,-168.07078377,0.0001768,2]
[402711076,1768819840740,-168.07078377,0.00017693,2]
[402711077,1768819840749,-150.0,0.00017699,2]
[402711078,1768819840759,-500.0,0.00017699,2]
[402711079,1768819840768,-151.32198325,0.00017699,2]
[402711080,1768819840777,-150.65265465,0.00017699,2]
[402711081,1768819840787,-150.0,0.00017699,2]
[402711082,1768819840796,-500.0,0.00017699,2]
[402711083,1768819840806,-150.0,0.00017699,2]
[402711084,1768819840816,-162.83588015,0.00017699,2]
[402711085,1768819840826,-500.0,0.00017699,2]
[402711086,1768819840835,-500.0,0.00017699,2]
[402711087,1768819840845,-150.0,0.00017699,2]
[402711088,1768819840855,-500.0,0.00017699,2]
[402711089,1768819840865,-500.0,0.00017699,2]
[402711090,1768819840876,-500.0,0.00017699,2]
[402711091,1768819840885,-500.0,0.00017699,2]
[402711092,1768819840894,-150.0,0.00017699,2]
[402711093,1768819840905,-150.0,0.00017699,2]
[402711094,1768819840914,-500.0,0.00017699,2]
[402711095,1768819840924,-168.07078377,0.00017706,2]
[402711096,1768819840933,-168.07078377,0.00017719,2]
[402711097,1768819840943,-150.0,0.00017726,2]
[402711098,1768819840952,-161.95810683,0.00017726,2]
[402711099,1768819840962,-168.07078377,0.00017732,2]
[402711100,1768819840971,-168.07078377,0.00017745,2]
[402711101,1768819840981,-161.25613076,0.00017754,2]
[402711102,1768819840991,-500.0,0.00017754,2]
[402711103,1768819841000,-150.0,0.00017754,2]
[402711104,1768819841010,-500.0,0.00017754,2]
[402711105,1768819841019,-500.0,0.00017754,2]
[402711106,1768819841028,-150.0,0.00017754,2]
[402711107,1768819841038,-500.0,0.00017754,2]
[402711108,1768819841047,-597.17918995,0.00017754,2]
[402711109,1768819841056,-500.0,0.00017754,2]
[402711110,1768819841065,-500.0,0.00017754,2]
[402711111,1768819841079,-500.0,0.00017754,2]
[402711112,1768819841088,-161.52378109,0.00017754,2]
[402711114,1768819841102,-500.0,0.00017754,2]
[402711116,1768819841113,-168.07078377,0.00017758,2]
[402711117,1768819841123,-168.07078377,0.00017771,2]
[402711118,1768819841133,-161.18999075,0.00017781,2]
[402711119,1768819841142,-168.07078377,0.00017783,2]
[402711120,1768819841152,-168.07078377,0.00017796,2]
[402711121,1768819841161,-1000.0,0.00017808,2]
[402711122,1768819841171,-358.06595541,0.00017809,2]
[402711123,1768819841181,-231.96376164,0.00017809,2]
[402711124,1768819841191,-500.0,0.00017809,2]
[402711125,1768819841200,-304.75207679,0.00017809,2]
[402711126,1768819841210,-158.4322296,0.00017809,2]
[402711127,1768819841220,-500.0,0.00017809,2]
[402711128,1768819841230,-500.0,0.00017809,2]
[402711129,1768819841240,-500.0,0.00017809,2]
[402711130,1768819841250,-500.0,0.00017809,2]
[402711132,1768819841259,-500.0,0.00017809,2]
[402711133,1768819841270,-1844.059,0.00017842,2]
[402711134,1768819841281,-158.744,0.00017856,2]
[402711135,1768819841291,-500.0,0.00017863,2]
[402711136,1768819841300,-500.0,0.00017863,2]
[402711137,1768819841312,-500.0,0.00017863,2]
[402711138,1768819841324,-350.0,0.00017863,2]
[402711139,1768819841333,-500.0,0.00017863,2]
[402711140,1768819841345,-500.0,0.00017863,2]
[402711141,1768819841357,-310.6741041,0.00017874,2]
[402711142,1768819841367,-288.14951301,0.000179,2]
[402711143,1768819841378,-231.25524934,0.000179,2]
[402711144,1768819841389,-421.7697,0.000179,2]
[402711145,1768819841400,-500.0,0.00017918,2]
[402711146,1768819841410,-500.0,0.00017918,2]
[402711147,1768819841420,-500.0,0.00017918,2]
[402711148,1768819841428,-500.0,0.00017918,2]
[402711149,1768819841437,-500.0,0.00017918,2]
[402711150,1768819841446,-500.0,0.00017973,2]
[402711151,1768819841456,-500.0,0.00017973,2]
[402711152,1768819841466,-500.0,0.00017973,2]
[402711153,1768819841480,-500.0,0.00017973,2]
[402711154,1768819841489,-500.0,0.00017973,2]
[402711155,1768819841499,-500.0,0.00017973,2]
[402711156,1768819841509,-151.0,0.00017997,2]
[402711157,1768819841519,-500.0,0.00017998,2]
[402711158,1768819841528,-500.0,0.00017998,2]
[402711159,1768819841538,-500.0,0.00017998,2]
[402711160,1768819841548,-500.0,0.00017998,2]
[402711161,1768819841558,-500.0,0.00017998,2]
[402711162,1768819841567,-155.0,0.00017999,2]
[402711163,1768819841577,-500.0,0.00017999,2]
[402711164,1768819841586,-500.0,0.00017999,2]
[402711165,1768819841595,-500.0,0.00017999,2]
[402711166,1768819841604,-519.05995183,0.00017999,2]
[402711167,1768819841614,-500.0,0.00017999,2]
[402711168,1768819841623,-625.82432737,0.00017999,2]
[402711169,1768819841633,-530.7052337,0.00017999,2]
[402711170,1768819841643,-300.0,0.00017999,2]
[402711171,1768819841652,-300.0,0.00017999,2]
[402711172,1768819841661,-172.06076958,0.00017999,2]
[402711173,1768819841670,-277.89121675,0.00017999,2]
[402711174,1768819841680,-500.0,0.00017999,2]
[402711175,1768819841689,-410.21176595,0.00017999,2]
[402711176,1768819841698,-405.74926717,0.00017999,2]
[402711177,1768819841708,-3456.0,0.00018,2]
[402711178,1768819841717,-150.0,0.00018,2]
[402711179,1768819841726,-1125497.24735062,0.00018,2]
[402711180,1768819841740,-1378.47091591,0.00018,2]
[402711181,1768819841755,-2859.88288406,0.00018,2]
[402711182,1768819841819,-556.68938228,0.00018,2]
[402711183,1768819841850,-325.929999,0.00018,2]
[402711184,1768819841864,-841.0,0.00018,2]
[402711185,1768819841876,-1664.24848934,0.00018,2]
[402711186,1768819841977,-500.0,0.00018,2]
[402711193,1768819843637,-168.07078377,0.00017809,2]
[402711194,1768819843646,-41681.02470124,0.00018,2]
[402711195,1768819843657,-1033.59956996,0.00018,2]
[402711196,1768819843668,-330.24087922,0.00018,2]
[402711203,1768819846447,-151.0,0.00017093,2]
[402711204,1768819846456,-151.0,0.00017093,2]
[402711205,1768819846466,-697.0,0.00018,2]
[402711206,1768819846553,-466.77974192,0.00018,2]
[402711303,1768820980612,10000.01,0.00012956,2]
[402711304,1768820980635,2321.02,0.00012956,2]
[402711312,1768821031431,-243.57931379,0.00015849,2]
[402711313,1768821031445,-500.0,0.00015849,2]
[402711314,1768821031455,-195.0,0.00015851,2]
[402711315,1768821031467,-667.90712893,0.00015851,2]
[402711316,1768821031477,-250.0,0.00015852,2]
[402711317,1768821031487,-600.0,0.00015852,2]
[402711318,1768821031498,-300.0,0.00015852,2]
[402711319,1768821031509,-200.0,0.00015853,2]
[402711320,1768821031519,-300.0,0.00015856,2]
[402711321,1768821031528,-98.83698239,0.00015856,2]
[402711322,1768821031557,-201.16301761,0.00015856,2]
[402711323,1768821031566,-1200.0,0.00015856,2]
[402711324,1768821031575,-300.0,0.00015856,2]
[402711325,1768821031586,-300.0,0.00015857,2]
[402711326,1768821031595,-124.37688116,0.00015857,2]
[402711327,1768821031607,-166.22411088,0.00015857,2]
[402711328,1768821031616,-231.25524934,0.00015931,2]
[402711329,1768821031625,-500.0,0.00015973,2]
[402711330,1768821031634,-44.37934629,0.00015973,2]
[402711331,1768821031645,-455.62065371,0.00015973,2]
[402711332,1768821031655,-500.0,0.00015973,2]
[402711333,1768821031665,-500.0,0.00015985,2]
[402711334,1768821031675,-500.0,0.00015994,2]
[402711335,1768821031684,-500.0,0.00016028,2]
[402711336,1768821031694,-209.39900796,0.00016028,2]
[402711337,1768821031703,-320.63042386,0.00016028,2]
[402711338,1768821031715,-179.36957614,0.00016028,2]
[402711339,1768821031724,-500.0,0.00016028,2]
[402711340,1768821031733,-500.0,0.00016028,2]
[402711341,1768821031743,-500.0,0.00016028,2]
[402711342,1768821031752,-500.0,0.00016028,2]
[402711343,1768821031762,-500.0,0.00016028,2]
[402711344,1768821031771,-500.0,0.00016028,2]
[402711345,1768821031780,-500.0,0.00016028,2]
[402711346,1768821031789,-500.0,0.00016028,2]
[402711347,1768821031800,-500.0,0.00016028,2]
[402711348,1768821031809,-500.0,0.00016028,2]
[402711349,1768821031819,-500.0,0.00016028,2]
[402711350,1768821031828,-500.0,0.00016028,2]
[402711351,1768821031840,-500.0,0.00016028,2]
[402711352,1768821031849,-500.0,0.00016028,2]
[402711353,1768821031860,-500.0,0.00016028,2]
[402711354,1768821031870,-416.72481143,0.00016028,2]
[402711355,1768821031882,-83.27518857,0.00016028,2]
[402711356,1768821031893,-428.59325674,0.00016028,2]
[402711357,1768821031918,-71.40674326,0.00016028,2]
[402711358,1768821031930,-500.0,0.00016028,2]
[402711359,1768821031939,-260.93219161,0.00016028,2]
[402711360,1768821031950,-239.06780839,0.00016028,2]
[402711361,1768821031959,-256.67902134,0.00016028,2]
[402711362,1768821031971,-243.32097866,0.00016028,2]
[402711363,1768821031981,-500.0,0.00016028,2]
[402711364,1768821031991,-500.0,0.00016028,2]
[402711365,1768821032001,-131.00414988,0.00016028,2]
[402711366,1768821032012,-368.99585012,0.00016028,2]
[402711367,1768821032022,-290.05238194,0.00016028,2]
[402711368,1768821032032,-211.95176794,0.00016028,2]
[402711370,1768821037494,-44.37823206,0.00016028,2]
[402711371,1768821037504,-2772.48480688,0.00016029,2]
[402711372,1768821037539,-12965.44379314,0.00016029,2]
[402711373,1768821037646,-2868.26562916,0.00016029,2]
[402711374,1768821037753,-694.46353124,0.00016029,2]
[402711375,1768821039689,-9512.86843066,0.00016029,2]
[402711376,1768821039699,-500.0,0.00016049,2]
[402711377,1768821039711,-557.61,0.00016074,2]
[402711378,1768821039720,-606.38167641,0.00016104,2]
[402711379,1768821039730,-341.31290121,0.00016104,2]
[402711380,1768821039741,-500.0,0.00016137,2]
[402711381,1768821039751,-500.0,0.00016137,2]
[402711382,1768821039761,-150.0,0.00016137,2]
[402711383,1768821039775,-500.0,0.00016137,2]
[402711384,1768821039785,-150.0,0.00016137,2]
[402711385,1768821039795,-500.0,0.00016137,2]
[402711386,1768821039804,-150.0,0.00016137,2]
[402711387,1768821039815,-162.83588015,0.00016137,2]
[402711388,1768821039824,-150.0,0.00016137,2]
[402711389,1768821039834,-161.95810683,0.00016137,2]
[402711390,1768821039844,-500.0,0.00016137,2]
[402711391,1768821039854,-500.0,0.00016137,2]
[402711392,1768821039863,-500.0,0.00016137,2]
[402711393,1768821039873,-500.0,0.00016137,2]
[402711394,1768821039882,-500.0,0.00016158,2]
[402711395,1768821039892,-379.99,0.00016185,2]
[402711396,1768821039902,-500.0,0.00016192,2]
[402711397,1768821039912,-500.0,0.00016192,2]
[402711398,1768821039922,-161.52378109,0.00016192,2]
[402711399,1768821039931,-500.0,0.00016192,2]
[402711400,1768821039942,-500.0,0.00016192,2]
[402711401,1768821039951,-150.0,0.00016192,2]
[402711402,1768821039961,-500.0,0.00016192,2]
[402711403,1768821039971,-500.0,0.00016192,2]
[402711404,1768821039981,-597.17918995,0.00016192,2]
[402711405,1768821039990,-500.0,0.00016192,2]
[402711406,1768821040000,-394.0,0.00016193,2]
[402711407,1768821040010,-150.0,0.000162,2]
[402711408,1768821040019,-500.0,0.00016213,2]
[402711409,1768821040029,-406.38346168,0.00016219,2]
[402711410,1768821040039,-150.0,0.00016231,2]
[402711411,1768821040048,-230.04153291,0.00016231,2]
[402711412,1768821040058,-500.0,0.00016247,2]
[402711413,1768821040068,-500.0,0.00016247,2]
[402711414,1768821040077,-500.0,0.00016247,2]
[402711415,1768821040086,-500.0,0.00016247,2]
[402711416,1768821040096,-158.4322296,0.00016247,2]
[402711417,1768821040107,-500.0,0.00016247,2]
[402711418,1768821040116,-304.75207679,0.00016247,2]
[402711420,1768821040125,-500.0,0.00016247,2]
[402711422,1768821040135,-500.0,0.00016268,2]
[402711424,1768821040144,-161.18999075,0.00016286,2]
[402711426,1768821040153,-500.0,0.00016301,2]
[402711428,1768821040163,-350.0,0.00016301,2]
[402711430,1768821040172,-500.0,0.00016301,2]
[402711431,1768821040182,-500.0,0.00016301,2]
[402711432,1768821040192,-500.0,0.00016301,2]
[402711433,1768821040204,-500.0,0.00016301,2]
[402711434,1768821040213,-256.33,0.00016302,2]
[402711435,1768821040222,-500.0,0.00016322,2]
[402711436,1768821040232,-500.0,0.00016356,2]
[402711437,1768821040241,-500.0,0.00016356,2]
[402711438,1768821040250,-500.0,0.00016356,2]
[402711439,1768821040260,-500.0,0.00016356,2]
[402711440,1768821040270,-500.0,0.00016356,2]
[402711441,1768821040279,-658.0,0.00016366,2]
[402711442,1768821040289,-500.0,0.00016377,2]
[402711443,1768821040300,-500.0,0.00016411,2]
[402711444,1768821040311,-500.0,0.00016411,2]
[402711445,1768821040321,-500.0,0.00016411,2]
[402711446,1768821040331,-500.0,0.00016411,2]
[402711447,1768821040341,-500.0,0.00016411,2]
[402711448,1768821040350,-1000.0,0.00016411,2]
[402711449,1768821040359,-500.0,0.00016432,2]
[402711450,1768821040368,-500.0,0.00016438,2]
[402711451,1768821040378,-500.0,0.00016438,2]
[402711452,1768821040388,-500.0,0.00016438,2]
[402711453,1768821040397,-333.10351463,0.00016438,2]
[402711454,1768821040406,-3240.0,0.00016442,2]
[402711455,1768821040415,-500.0,0.00016466,2]
[402711456,1768821040425,-500.0,0.00016466,2]
[402711457,1768821040436,-500.0,0.00016466,2]
[402711458,1768821040446,-500.0,0.00016466,2]
[402711459,1768821040455,-500.0,0.00016487,2]
[402711460,1768821040469,-500.0,0.00016521,2]
[402711461,1768821040480,-500.00000017,0.00016521,2]
[402711462,1768821040491,-500.0,0.00016521,2]
[402711463,1768821040500,-500.0,0.00016521,2]
[402711464,1768821040510,-500.0,0.00016542,2]
[402711465,1768821040519,-1118.35,0.00016542,2]
[402711466,1768821040529,-150.0,0.0001656,2]
[402711467,1768821040538,-2500.0,0.00016571,2]
[402711468,1768821040548,-500.0,0.00016575,2]
[402711469,1768821040558,-389.65716214,0.00016575,2]
[402711470,1768821040567,-500.0,0.00016575,2]
[402711471,1768821040578,-256.33,0.00016576,2]
[402711472,1768821040589,-500.0,0.00016596,2]
[402711473,1768821040599,-415.0,0.0001663,2]
[402711474,1768821040608,-500.0,0.0001663,2]
[402711475,1768821040619,-227.51,0.00016642,2]
[402711476,1768821040628,-500.0,0.00016651,2]
[402711477,1768821040638,-166.66,0.00016658,2]
[402711478,1768821040647,-322.6107,0.00016671,2]
[402711479,1768821040658,-174.61919141,0.00016671,2]
[402711480,1768821040667,-721.12765535,0.00016671,2]
[402711481,1768821040676,-4444.0,0.00016671,2]
[402711482,1768821040691,-151.0,0.00016671,2]
[402711483,1768821040701,-151.0,0.00016671,2]
[402711484,1768821040711,-578.20924308,0.00016671,2]
[402711485,1768821040721,-9000.0,0.00016671,2]
[402711486,1768821040732,-8358.55783493,0.00016671,2]
[402711487,1768821040742,-500.0,0.00016671,2]
[402711488,1768821040751,-500.0,0.00016671,2]
[402711489,1768821040760,-500.0,0.00016671,2]
[402711490,1768821040771,-500.0,0.00016671,2]
[402711491,1768821040780,-500.0,0.00016671,2]
[402711492,1768821040790,-500.0,0.00016671,2]
[402711493,1768821040799,-500.0,0.00016671,2]
[402711494,1768821040808,-500.0,0.00016671,2]
[402711495,1768821040818,-500.0,0.00016671,2]
[402711496,1768821040827,-500.0,0.00016671,2]
[402711497,1768821040837,-500.0,0.00016671,2]
[402711498,1768821040846,-500.0,0.00016671,2]
[402711499,1768821040855,-265.25234618,0.00016671,2]
[402711500,1768821040864,-500.0,0.00016671,2]
[402711501,1768821040873,-500.0,0.00016671,2]
[402711502,1768821040883,-500.0,0.00016671,2]
[402711503,1768821040892,-500.0,0.00016671,2]
[402711504,1768821040901,-500.0,0.00016671,2]
[402711505,1768821040910,-500.0,0.00016671,2]
[402711506,1768821040919,-620.0,0.00016671,2]
[402711507,1768821040929,-500.0,0.00016671,2]
[402711508,1768821040939,-250.0,0.00016671,2]
[402711509,1768821040948,-250.0,0.00016671,2]
[402711510,1768821040957,-250.0,0.00016671,2]
[402711511,1768821040967,-250.0,0.00016671,2]
[402711512,1768821040976,-500.0,0.00016671,2]
[402711513,1768821040985,-250.0,0.00016671,2]
[402711514,1768821040994,-500.0,0.00016671,2]
[402711515,1768821041003,-250.0,0.00016671,2]
[402711516,1768821041013,-500.0,0.00016671,2]
[402711517,1768821041022,-250.0,0.00016671,2]
[402711518,1768821041031,-574.12855637,0.00016671,2]
[402711519,1768821041040,-250.0,0.00016671,2]
[402711520,1768821041049,-265.37336073,0.00016671,2]
[402711521,1768821041058,-250.0,0.00016671,2]
[402711522,1768821041068,-250.0,0.00016671,2]
[402711523,1768821041077,-250.0,0.00016671,2]
[402711524,1768821041086,-1000.0,0.00016671,2]
[402711525,1768821041095,-1000.0,0.00016671,2]
[402711526,1768821041105,-1000.0,0.00016671,2]
[402711527,1768821041114,-1000.0,0.00016671,2]
[402711528,1768821041123,-1000.0,0.00016671,2]
[402711529,1768821041132,-1000.0,0.00016671,2]
[402711530,1768821041142,-1000.0,0.00016671,2]
[402711531,1768821041152,-1000.0,0.00016671,2]
[402711532,1768821041161,-1000.0,0.00016671,2]
[402711533,1768821041171,-1000.0,0.00016671,2]
[402711534,1768821041180,-1000.0,0.00016671,2]
[402711535,1768821041189,-500.0,0.00016685,2]
[402711536,1768821041199,-500.0,0.00016706,2]
[402711537,1768821041209,-500.0,0.0001674,2]
[402711538,1768821041221,-500.0,0.00016761,2]
[402711539,1768821041232,-500.0,0.00016816,2]
[402711540,1768821041242,-1787.18771888,0.00016822,2]
[402711541,1768821041252,-256.33,0.0001685,2]
[402711542,1768821041262,-242.40907876,0.00016852,2]
[402711543,1768821041273,-500.0,0.0001687,2]
[402711544,1768821041283,-557.61,0.00016878,2]
[402711545,1768821041294,-917.03,0.00016906,2]
[402711546,1768821041306,-242.40907876,0.00016907,2]
[402711547,1768821041316,-150.0,0.0001692,2]
[402711548,1768821041326,-190.49782913,0.00016921,2]
[402711549,1768821041335,-245.8010994,0.00016921,2]
[402711550,1768821041345,-396.9874525,0.00016921,2]
[402711551,1768821041354,-586.01680851,0.00016921,2]
[402711552,1768821041363,-500.0,0.00016921,2]
[402711553,1768821041372,-500.0,0.00016921,2]
[402711554,1768821041384,-443.92752453,0.00016921,2]
[402711555,1768821041393,-4361.12,0.00016922,2]
[402711556,1768821041402,-150.99,0.00016922,2]
[402711557,1768821041411,-7137.6,0.00016922,2]
[402711558,1768821041421,-299.99,0.00016922,4]
[402711559,1768821041430,-3066.11546669,0.00016922,2]